fUST/lending_fUST_20240816
["ID","MTS","AMOUNT","RATE_DAILY","PERIOD"]
[335031903,1723782640537,-160.61413202,0.00022299,7]
[335031905,1723782640555,-137.31469998,0.00022299,7]
[335031908,1723782640566,-297.928832,0.00022299,7]
[335031910,1723782640575,-297.928832,0.00022299,7]
[335031912,1723782640585,-297.928832,0.00022299,7]
[335031914,1723782640594,-297.928832,0.00022299,7]
[335031916,1723782640604,-297.928832,0.00022299,7]
[335031918,1723782640613,-297.928833,0.00022299,7]
[335031920,1723782640622,-952.97302419,0.00024651,2]
[335031922,1723782640634,-1366.60289763,0.00026373,2]
[335031924,1723782640643,-150.0,0.00027,30]
[335031926,1723782640652,-471.58700353,0.00028041,2]
[335031928,1723782640661,-336.64263509,0.0003,30]
[335031930,1723782640671,-5265.03277721,0.00030917,4]
[335031932,1723782640682,-1609.04805411,0.00030917,4]
[335031934,1723782640695,-725.74466814,0.00030917,4]
[335031937,1723782640712,-8670.50199024,0.00030917,4]
[335031939,1723782640722,-1366.60289763,0.00030927,2]
[335031942,1723782640732,-744.12482329,0.00031001,30]
[335031944,1723782640741,-351.20760871,0.00031001,120]
[335031946,1723782640751,-158.646532,0.00031781,2]
[335031948,1723782640760,-1199.86755995,0.00035,15]
[335031950,1723782640769,-1366.60289763,0.00035482,2]
[335031952,1723782640778,-167.454236,0.00035616,120]
[335031954,1723782640787,-154.79103211,0.0004,4]
[335031956,1723782640796,-1366.60289763,0.00040036,28]
[335031958,1723782640805,-15343.6183776,0.00042,120]
[335031960,1723782640814,-229.69110949,0.00042,42]
[335031962,1723782640823,-500.0,0.0004274,2]
[335031977,1723782640953,-10.62664606,0.00043524,2]
[335031984,1723782641002,-1583.291187,0.00021935,7]
[335031986,1723782641011,-3385.80646231,0.00043524,2]
[335031988,1723782641021,-32540.6549795,0.00043614,5]
[335031990,1723782641031,-500.0,0.00043623,31]
[335031992,1723782641039,-295.7023501,0.00043623,31]
[335031994,1723782641049,-88888.0,0.00043624,5]
[335031996,1723782641058,-1121.77028794,0.00043714,61]
[335031998,1723782641068,-71308.59836083,0.00043714,5]
[335032000,1723782641079,-10043.03908787,0.00043714,5]
[335032002,1723782641088,-70218.95541954,0.00043724,60]
[335032044,1723782641467,-501.98208771,0.00021935,7]
[335032046,1723782641479,-1081.30909929,0.00021935,7]
[335032048,1723782641489,-1583.291187,0.00021935,7]
[335032050,1723782641499,-1583.291187,0.00021935,7]
[335032053,1723782641510,-1583.291187,0.00021935,7]
[335032055,1723782641519,-1583.291178,0.00021935,7]
[335032057,1723782641529,-2282.24875134,0.00043724,60]
[335032058,1723782641546,-671.77936835,0.00043724,60]
[335032059,1723782641561,-31221.52934647,0.00043724,60]
[335032060,1723782641572,-268.20199972,0.00043724,60]
[335032063,1723782641587,-495.65667566,0.00043724,60]
[335032065,1723782641602,-310.66667643,0.00043724,60]
[335032067,1723782641614,-409.36729052,0.00043724,60]
[335032486,1723782646264,-1364.83551915,0.00043724,60]
[335032489,1723782646276,-526.08072875,0.00043724,60]
[335032495,1723782646324,-562.98055713,0.00043724,60]
[335033189,1723782879755,158.20760834,0.00013971,2]
[335033192,1723783536139,-154.79103211,0.00014245,2]
[335033193,1723783536163,-158.646532,0.00014247,2]
[335033194,1723783536187,-546.7758951,0.00016933,2]
[335033195,1723783647099,-154.79103211,0.00014519,2]
[335033196,1723783647121,-155.05125079,0.00014519,2]
[335033197,1723783647142,-674.64563111,0.0002469,2]
[335033198,1723783747087,-151.88776574,0.00014245,2]
[335033199,1723783754102,-11.5454505,0.00014245,2]
[335033200,1723783754126,-154.79103211,0.00014519,2]
[335033201,1723783754148,-340.61737907,0.00014519,2]
[335033202,1723783794887,154.79103211,0.00017598,2]
[335033495,1723783842450,75.23954495,0.00014247,2]
[335033496,1723783842476,85.71461605,0.00014247,2]
[335043665,1723784123118,155.07815577,0.00013971,2]
[335043666,1723784176872,273.37336231,9.9e-05,2]
[335043667,1723784184905,273.37336231,9.9e-05,2]
[335043668,1723784318254,504.87206106,0.00013971,2]
[335043669,1723784342919,422.1184028,0.00013971,2]
[335043670,1723784356307,289.1436327,0.00013971,2]
[335043671,1723784371131,521.06353975,0.00013971,2]
[335043672,1723784371567,155.03814177,0.00013971,2]
[335043673,1723784374190,154.86418742,0.00013971,2]
[335043674,1723784375045,388.45594175,0.00013971,2]
[335043675,1723784375191,154.96697392,0.00013971,2]
[335043678,1723784550150,521.06353975,0.00013971,2]
[335043679,1723784660701,273.37336231,9.9e-05,2]
[335043680,1723784676185,273.37336231,9.9e-05,2]
[335043681,1723784692534,273.37336231,9.9e-05,2]
[335043682,1723784722570,273.37336231,9.9e-05,2]
[335043683,1723784728160,367.71873975,0.00013971,2]
[335043684,1723784731107,-251.59481065,0.00014147,2]
[335043685,1723784731129,-162.0967377,0.00014247,2]
[335043686,1723784731150,-189.33487954,0.00014519,2]
[335043687,1723784738741,273.37336231,9.9e-05,2]
[335043688,1723784754429,273.37336231,9.9e-05,2]
[335043689,1723784759024,533.88644737,0.00012,2]
[335043690,1723784765362,154.86193075,0.00012,2]
[335043691,1723784769791,273.37336231,9.9e-05,2]
[335043692,1723784770001,553.19205086,0.00012,2]
[335043693,1723784771589,524.22779629,0.00012,2]
[335043694,1723784778539,189.254303,0.00012,2]
[335043695,1723784783838,159.08225181,0.00012,2]
[335043696,1723784786234,273.37336231,9.9e-05,2]
[335043697,1723784802204,273.37336231,9.9e-05,2]
[335043698,1723784806110,-175.38276741,0.00014245,2]
[335043699,1723784806133,-73.99925742,0.00014519,2]
[335043700,1723784818240,273.37336231,9.9e-05,2]
[335043701,1723784825102,-422.17784127,0.00014245,2]
[335043702,1723784825125,-154.87140246,0.00016934,2]
[335043703,1723784825147,-121.30660007,0.00021,2]
[335043704,1723784834338,273.37336231,9.9e-05,2]
[335043705,1723784849107,-185.69339993,0.00021,2]
[335043706,1723784849130,-4709.3263241,0.00021331,2]
[335043707,1723784849153,-159.722223,0.00022712,2]
[335043708,1723784849176,-159.722223,0.00022859,2]
[335043709,1723784849199,-159.722223,0.00023007,2]
[335043710,1723784849220,-159.722223,0.00023155,2]
[335043711,1723784849242,-159.722223,0.00023303,2]
[335043712,1723784849262,-159.722223,0.00023451,2]
[335043713,1723784849284,-159.722223,0.00023599,2]
[335043714,1723784849306,-159.722223,0.00023747,2]
[335043715,1723784849334,-410.7548709,0.00023894,2]
[335043716,1723784849358,-159.722223,0.00023895,2]
[335043717,1723784849383,-952.97302419,0.00024366,2]
[335043718,1723784849408,-278.61521776,0.00024386,2]
[335043719,1723784850191,273.37336231,9.9e-05,2]
[335043720,1723784865637,273.37336231,9.9e-05,2]
[335043721,1723784881868,273.37336231,9.9e-05,2]
[335043722,1723784897466,273.37336231,9.9e-05,2]
[335043727,1723784913492,273.37336231,9.9e-05,2]
[335043728,1723784928932,273.37336231,9.9e-05,2]
[335043732,1723784944432,273.37336231,9.9e-05,2]
[335043733,1723784948162,-334.28975804,0.00014245,2]
[335043734,1723784948182,-154.84768322,0.00014519,2]
[335043735,1723784948202,-422.17784127,0.00014519,2]
[335043736,1723784948222,-422.86017271,0.00015,2]
[335043737,1723784951096,-530.11285148,0.00015,2]
[335043739,1723784960631,201.87503232,9.9e-05,2]
[335043740,1723784960659,71.49832999,9.9e-05,2]
[335043741,1723784973878,235.98912089,0.00012,2]
[335043742,1723784973900,84.57584137,0.00012,2]
[335043743,1723784976174,67.089078,9.9e-05,2]
[335043744,1723784976200,206.28428431,9.9e-05,2]
[335043745,1723784983948,2194.99918079,0.00012,2]
[335043746,1723784985524,154.80937109,0.00012,2]
[335043747,1723784986146,246.97038266,0.00012,2]
[335043748,1723784986967,440.93691464,0.00012,2]
[335043749,1723784989183,414.09211061,0.00012,2]
[335043750,1723784991050,386.71920611,0.00012,3]
[335043751,1723784992213,273.37336231,9.9e-05,2]
[335043752,1723784992712,154.79103211,0.00012,2]
[335043753,1723784993129,154.8849202,0.00012,2]
[335043754,1723784993160,155.35307037,0.00012,2]
[335043755,1723784995055,933.95832142,0.00012,2]
[335043756,1723784995950,512.72631408,0.00012,2]
[335043757,1723784997192,711.43806163,0.00012,2]
[335043758,1723784999165,408.19220589,0.00012,2]
[335043759,1723785007624,273.37336231,9.9e-05,2]
[335043761,1723785024471,273.37336231,9.9e-05,2]
[335043779,1723785032566,-246.13967301,0.00014899,2]
[335043781,1723785032576,-300.0,0.00014999,2]
[335043783,1723785032586,-783.44955407,0.00015,2]
[335043784,1723785032595,-952.97302419,0.00015,2]
[335043785,1723785032605,-327.98630177,0.00015,2]
[335043788,1723785032624,-2728.43525871,0.00015,2]
[335043791,1723785032635,-1041.6468599,0.00015,2]
[335043793,1723785032647,-509.94623054,0.00015,2]
[335043795,1723785032656,-358.54376946,0.00016499,2]
[335043833,1723785038738,-61.45623054,0.00016499,2]
[335043835,1723785038747,-277.88322331,0.000165,2]
[335043837,1723785038757,-270.96227468,0.00017,2]
[335043839,1723785038767,-10306.56721272,0.00017898,2]
[335043841,1723785038779,-322.0,0.00018149,2]
[335043843,1723785038789,-1553.6324587,0.00024131,2]
[335043845,1723785038799,-150.0,0.00024553,2]
[335043847,1723785038811,-4474.81229342,0.00024557,2]
[335043849,1723785038823,-1260.16836963,0.0002469,2]
[335043851,1723785038833,-3000.0,0.000249,2]
[335043853,1723785038842,-3000.0,0.0002491,2]
[335043855,1723785038855,-3000.0,0.0002492,2]
[335043857,1723785038865,-3000.0,0.0002493,2]
[335043859,1723785038875,-3000.0,0.0002494,2]
[335043861,1723785038884,-3000.0,0.0002495,2]
[335043863,1723785038893,-3062.326312,0.0002496,2]
[335043865,1723785038903,-465.64816292,0.00028064,2]
[335043868,1723785038913,-24900.0,0.00028489,2]
[335043870,1723785038923,-156.0,0.0002883,20]
[335043872,1723785038932,-160.954161,0.00034703,2]
[335043874,1723785038942,-198.7696679,0.00035349,2]
[335043876,1723785038952,-167.454236,0.00035616,120]
[335043877,1723785038962,-600.0,0.00042072,2]
[335043879,1723785038971,-601.72102059,0.0004251,2]
[335043881,1723785038981,-500.0,0.0004274,2]
[335043883,1723785038991,-500.0,0.00043,120]
[335043886,1723785039002,-20000.0,0.00043,20]
[335043888,1723785039012,-649.95057096,0.00043414,2]
[335043890,1723785039022,-649.95057094,0.00043422,2]
[335043892,1723785039033,-649.95057094,0.00043431,2]
[335043894,1723785039043,-649.95057094,0.00043439,2]
[335043896,1723785039053,-649.95057094,0.00043447,2]
[335043898,1723785039063,-869.31304227,0.00043447,2]
[335043900,1723785039073,-2000.0,0.00043457,2]
[335043902,1723785039083,-154.786509,0.000435,9]
[335043904,1723785039093,-961.7411062,0.00043514,7]
[335043906,1723785039103,-203.52286462,0.00043523,2]
[335043908,1723785039113,-855.59925096,0.00043523,2]
[335043910,1723785039123,-392.95887654,0.00043526,31]
[335043912,1723785039132,-1494.89292031,0.00043527,61]
[335043914,1723785039141,-188686.22852866,0.00043527,5]
[335043917,1723785039155,-65410.01005734,0.00043527,5]
[335043919,1723785039164,-153.0,0.00043534,2]
[335043922,1723785039180,-207.3931713,0.00043534,2]
[335043924,1723785039197,-52234.57042419,0.00043537,32]
[335043927,1723785039210,-1237.88594215,0.00043537,32]
[335043929,1723785039223,-3889.2,0.00043537,32]
[335043932,1723785039244,-20168.77509246,0.00043537,32]
[335043988,1723785041046,-3934.28946354,0.00043537,32]
[335043989,1723785041191,-18740.77405291,0.00043537,32]
[335043990,1723785041203,-1868.5805,0.00043537,32]
[335043991,1723785041326,273.37336231,9.9e-05,2]
[335044013,1723785044014,-18461.65839922,0.00043537,32]
[335044079,1723785050729,154.79103211,0.00012,2]
[335044080,1723785056912,273.37336231,9.9e-05,2]
[335044081,1723785058554,1670.74719108,0.00012,2]
[335044082,1723785060998,2281.46155286,0.00012,3]
[335044083,1723785061277,357.3169041,0.00012,2]
[335044084,1723785072382,273.37336231,9.9e-05,2]
[335044085,1723785088916,273.37336231,9.9e-05,2]
[335044086,1723785101726,154.79103211,0.00012,2]
[335044088,1723785105320,273.37336231,9.9e-05,2]
[335044089,1723785121302,273.37336231,9.9e-05,2]
[335044090,1723785137117,273.37336231,9.9e-05,2]
[335044091,1723785153963,273.37336231,9.9e-05,2]
[335044092,1723785162164,241.77103838,0.00012,2]
[335044093,1723785168961,1013.0,0.00021333,30]
[335044094,1723785169405,273.37336231,9.9e-05,2]
[335044095,1723785170724,154.79103211,0.00012,2]
[335044096,1723785184890,273.37336231,9.9e-05,2]
[335044097,1723785200954,273.37336231,9.9e-05,2]
[335044099,1723785216961,273.37336231,9.9e-05,2]
[335044100,1723785232978,273.37336231,9.9e-05,2]
[335044101,1723785248432,273.37336231,9.9e-05,2]
[335044102,1723785264923,273.37336231,9.9e-05,2]
[335044103,1723785280844,273.37336231,9.9e-05,2]
[335044104,1723785281729,154.79103211,0.00012,2]
[335044105,1723785296166,273.37336231,9.9e-05,2]
[335044106,1723785311737,154.97517482,9.9e-05,2]
[335044110,1723785534749,154.79103211,0.00012,2]
[335044128,1723786006814,215.58722117,0.00013971,2]
[335044130,1723786033147,-508.90616512,0.00014147,2]
[335044131,1723786045100,-1167.57538567,0.00014147,2]
[335044132,1723786088912,273.37336231,9.9e-05,2]
[335044133,1723786096938,182.70699478,9.9e-05,2]
[335044137,1723786156109,-1050.62112337,0.00014147,2]
[335044138,1723786156129,-565.62708494,0.00014245,2]
[335044139,1723786156152,-158.404374,0.00014247,2]
[335044140,1723786156172,-154.97585054,0.00014519,2]
[335044141,1723786156192,-359.42614995,0.00014519,2]
[335044142,1723786156215,-851.67119967,0.00014519,2]
[335044143,1723786156237,-180.73325647,0.00014519,2]
[335044144,1723786156259,-157.2599592,0.00014519,2]
[335044145,1723786156279,-154.93495621,0.00014519,2]
[335044146,1723786156298,-155.34425657,0.00014519,2]
[335044147,1723786156318,-305.8948106,0.00014519,2]
[335044148,1723786156339,-320.02539096,0.00014519,2]
[335044149,1723786156360,-310.2065959,0.00014519,2]
[335044150,1723786156379,-404.32214551,0.00014519,2]
[335044151,1723786156401,-174.75672236,0.00014519,2]
[335044152,1723786156422,-300.0,0.00014999,2]
[335044153,1723786156444,-952.97302419,0.00015,2]
[335044154,1723786156465,-5242.02170044,0.00015,2]
[335044155,1723786156485,-782.12449386,0.00015,2]
[335044156,1723786156506,-420.0,0.00016499,2]
[335044157,1723786156527,-608.58295663,0.00017148,2]
[335044158,1723786156548,-511.67780438,0.00017148,2]
[335044159,1723786156568,-196.63865106,0.00017148,2]
[335044160,1723786156590,-379.29698785,0.00017148,2]
[335044161,1723786156611,-154.79103211,0.00017148,2]
[335044162,1723786156631,-155.1212643,0.00017148,2]
[335044163,1723786156652,-296.8599257,0.00017148,2]
[335044164,1723786156672,-665.04001235,0.00017148,2]
[335044165,1723786156693,-490.56454085,0.00017148,2]
[335044166,1723786156713,-187.27888222,0.00017148,2]
[335044167,1723786156756,273.37336231,9.9e-05,2]
[335044168,1723786159098,-933.23052242,0.00014519,2]
[335044169,1723786159120,-5.20289291,0.00017148,2]
[335044170,1723786159142,-305.12880689,0.00017148,2]
[335044171,1723786159163,-544.6199315,0.00017148,2]
[335044172,1723786159185,-494.81071941,0.00017148,2]
[335044173,1723786159206,-154.79103211,0.00017148,2]
[335044174,1723786159228,-10882.30170196,0.00018,2]
[335044175,1723786171984,273.37336231,9.9e-05,2]
[335044176,1723786172121,-136.16213878,0.00018,2]
[335044177,1723786172322,-587.0,0.00018149,2]
[335044179,1723786185079,154.88997078,0.00012,2]
[335044180,1723786187880,52.56231532,9.9e-05,2]
[335044181,1723786187907,220.81104699,9.9e-05,2]
[335044182,1723786203894,273.37336231,9.9e-05,2]
[335044183,1723786220709,273.37336231,9.9e-05,2]
[335044222,1723786231760,-1260.16836963,0.0002,2]
[335044223,1723786231774,-158.404374,0.00021467,2]
[335044224,1723786231783,-663.62277646,0.00021998,2]
[335044225,1723786231793,-180.95785372,0.00021998,2]
[335044226,1723786231803,-155.40759513,0.00021998,2]
[335044227,1723786231813,-810.98237385,0.00021998,2]
[335044228,1723786231823,-524.27403594,0.00021998,2]
[335044229,1723786231832,-157.95166393,0.00021998,2]
[335044230,1723786231844,-296.51923013,0.00021998,2]
[335044231,1723786231854,-3000.0,0.00022017,2]
[335044232,1723786231863,-300.0,0.00022261,2]
[335044234,1723786231873,-300.0,0.00022261,2]
[335044236,1723786231882,-13481.0085293,0.00022262,2]
[335044238,1723786231891,-183.333333,0.00023449,2]
[335044239,1723786231901,-183.333333,0.00023754,2]
[335044240,1723786231911,-183.333333,0.0002406,2]
[335044241,1723786231920,-346.0,0.00024184,2]
[335044242,1723786231930,-183.333333,0.00024365,2]
[335044244,1723786231942,-300.0,0.00024487,2]
[335044246,1723786231951,-183.333333,0.00024671,2]
[335044247,1723786231961,-1429.570068,0.00025,2]
[335044248,1723786231970,-158.404374,0.00028687,2]
[335044249,1723786231980,-1705.64374595,0.0002997,4]
[335044251,1723786236948,273.37336231,9.9e-05,2]
[335044283,1723786238008,-13822.45972315,0.0002997,4]
[335044285,1723786238017,-3458.63170444,0.0002998,2]
[335044287,1723786238029,-401.1660572,0.0002998,2]
[335044395,1723786240064,-12490.6183196,0.0002998,2]
[335044421,1723786242877,-21604.46782733,0.0002998,2]
[335045087,1723786253188,273.37336231,9.9e-05,2]
[335046583,1723786268714,273.37336231,9.9e-05,2]
[335047492,1723786284247,273.37336231,9.9e-05,2]
[335047598,1723786299643,273.37336231,9.9e-05,2]
[335047599,1723786303991,154.96528994,0.00012,2]
[335047600,1723786304038,783.10206145,0.00012,2]
[335047601,1723786305938,728.34861839,0.00012,2]
[335047602,1723786306619,188.49871468,0.00012,2]
[335047603,1723786306955,154.79103211,0.00012,2]
[335047604,1723786307986,174.72672334,0.00012,2]
[335047605,1723786309241,285.4487675,0.00012,2]
[335047606,1723786310168,180.67948358,0.00012,2]
[335047607,1723786311365,404.1964714,0.00012,2]
[335047608,1723786312095,643.26548737,0.00012,2]
[335047609,1723786312313,810.88959894,0.00012,2]
[335047610,1723786312644,399.86116849,0.00012,2]
[335047611,1723786315246,273.37336231,9.9e-05,2]
[335047612,1723786322196,636.72640188,0.00012,2]
[335047613,1723786325399,3091.61067347,0.00012,2]
[335047614,1723786330775,273.37336231,9.9e-05,2]
[335047615,1723786346187,273.37336231,9.9e-05,2]
[335047616,1723786355582,188.4831986,0.00012,2]
[335047617,1723786357300,210.10628593,0.00012,2]
[335047618,1723786362067,273.37336231,9.9e-05,2]
[335047619,1723786378448,273.37336231,9.9e-05,2]
[335047620,1723786380367,3091.40343519,0.00012,2]
[335047621,1723786386909,248.08942635,0.00012,2]
[335047622,1723786394056,273.37336231,9.9e-05,2]
[335047623,1723786409571,273.37336231,9.9e-05,2]
[335047624,1723786426179,273.37336231,9.9e-05,2]
[335047625,1723786431898,223.76059788,0.00012,2]
[335047626,1723786436639,262.5596185,0.00012,2]
[335047627,1723786442265,273.37336231,9.9e-05,2]
[335047628,1723786442597,188.49095664,0.00012,2]
[335047629,1723786457266,1232.81447369,0.00012,2]
[335047630,1723786457730,273.37336231,9.9e-05,2]
[335047631,1723786473904,273.37336231,9.9e-05,2]
[335047632,1723786474036,534.37775465,0.00012,2]
[335047633,1723786475494,164.31825493,0.00012,2]
[335047634,1723786476229,285.63682079,0.00012,2]
[335047635,1723786476888,406.73092044,0.00012,2]
[335047636,1723786481498,248.4958209,0.00012,2]
[335047637,1723786485633,217.11203843,0.00012,2]
[335047638,1723786488003,231.83346396,0.00012,2]
[335047639,1723786488980,200.38569596,0.00012,2]
[335047640,1723786489883,273.37336231,9.9e-05,2]
[335047641,1723786506555,273.37336231,9.9e-05,2]
[335047642,1723786522342,273.37336231,9.9e-05,2]
[335047643,1723786546057,273.37336231,9.9e-05,2]
[335047644,1723786562146,273.37336231,9.9e-05,2]
[335047645,1723786577688,273.37336231,9.9e-05,2]
[335047646,1723786593529,273.37336231,9.9e-05,2]
[335047647,1723786610573,273.37336231,9.9e-05,2]
[335047648,1723786626725,273.37336231,9.9e-05,2]
[335047649,1723786642672,273.37336231,9.9e-05,2]
[335047650,1723786658126,273.37336231,9.9e-05,2]
[335047651,1723786674137,273.37336231,9.9e-05,2]
[335047652,1723786690904,273.37336231,9.9e-05,2]
[335047653,1723786706831,273.37336231,9.9e-05,2]
[335047654,1723786724043,273.37336231,9.9e-05,2]
[335047655,1723786739655,273.37336231,9.9e-05,2]
[335047656,1723786755120,273.37336231,9.9e-05,2]
[335047657,1723786771399,273.37336231,9.9e-05,2]
[335047658,1723786787968,273.37336231,9.9e-05,2]
[335047659,1723786803473,226.69292776,9.9e-05,2]
[335047660,1723787008047,500.0,0.000119,2]
[335047661,1723787008563,500.0,0.000119,2]
[335047662,1723787009062,500.0,0.000119,2]
[335047663,1723787009522,500.0,0.000119,2]
[335047664,1723787009964,500.0,0.000119,2]
[335047665,1723787010366,500.0,0.000119,2]
[335047666,1723787010752,500.0,0.000119,2]
[335047667,1723787011145,500.0,0.000119,2]
[335047668,1723787011526,500.0,0.000119,2]
[335047669,1723787011908,500.0,0.000119,2]
[335047670,1723787012307,500.0,0.000119,2]
[335047671,1723787012698,500.0,0.000119,2]
[335047672,1723787013158,500.0,0.000119,2]
[335047673,1723787013536,500.0,0.000119,2]
[335047674,1723787013943,500.0,0.000119,2]
[335047675,1723787014318,500.0,0.000119,2]
[335047676,1723787014717,498.4979309,0.000119,2]
[335047677,1723787026136,246.20063181,0.00012,2]
[335047678,1723787232136,-166.823013,0.00014247,2]
[335047679,1723787232157,-158.419508,0.00014247,2]
[335047680,1723787232178,-83.41640789,0.00015,2]
[335047681,1723787241124,-869.5566163,0.00015,2]
[335047682,1723787241145,-33.16970182,0.00015,2]
[335047683,1723787355102,-450.94632607,0.00015,2]
[335047684,1723787355123,-466.8874849,0.00015,2]
[335047685,1723787355143,-3000.0,0.0001644,2]
[335047686,1723787355165,-170.8529637,0.00016448,2]
[335047687,1723787355186,-300.0,0.00017098,2]
[335047688,1723787355206,-300.0,0.00017098,2]
[335047689,1723787355228,-24900.0,0.00017099,2]
[335047690,1723787355248,-580.2064215,0.00017168,2]
[335047691,1723787355269,-159.033805,0.00017198,2]
[335047692,1723787355293,-159.033805,0.00017272,2]
[335047693,1723787355318,-159.033805,0.00017346,2]
[335047694,1723787355342,-159.033805,0.0001742,2]
[335047695,1723787355369,-159.033805,0.00017494,2]
[335047696,1723787355391,-159.033805,0.00017568,2]
[335047697,1723787355414,-159.033805,0.00017642,2]
[335047698,1723787355439,-159.033805,0.00017716,2]
[335047699,1723787355461,-159.033805,0.00017791,2]
[335047700,1723787355483,-271.39957195,0.00017864,2]
[335047701,1723787355504,-159.033805,0.00017865,2]
[335047702,1723787355534,-3885.43906603,0.00017898,2]
[335047703,1723787355558,-159.033805,0.00017939,2]
[335047704,1723787355579,-952.97302419,0.0001816,2]
[335047705,1723787355599,-45.96722362,0.00018182,2]
[335047706,1723787371117,-108.82380849,0.00018182,2]
[335047707,1723787371146,-132.05751592,0.00018808,2]
[335047743,1723787432131,-784.11204937,0.00018182,2]
[335048293,1723787443024,-168.86097482,0.00018182,2]
[335048294,1723787443034,-1260.16836963,0.0002,2]
[335048295,1723787443043,-158.419508,0.00022429,2]
[335048296,1723787443053,-3000.0,0.00025,2]
[335048297,1723787443063,-1487.65338755,0.0002501,2]
[335048299,1723787443783,-1512.34661245,0.0002501,2]
[335048301,1723787443793,-300.0,0.00025019,2]
[335048303,1723787443803,-2070.60428256,0.0002502,2]
[335048306,1723787443817,-929.39571744,0.0002502,2]
[335048310,1723787443827,-3000.0,0.0002503,2]
[335048313,1723787443837,-159.033805,0.00028703,2]
[335048317,1723787443846,-5323.75708142,0.00029348,2]
[335048319,1723787443856,-159.033805,0.00029451,2]
[335048322,1723787443866,-5323.75708143,0.00029782,2]
[335048324,1723787443875,-16408.8583442,0.0002997,4]
[335048326,1723787443885,-10094.65245401,0.0002998,2]
[335048514,1723787446976,273.37336231,9.9e-05,2]
[335048843,1723787520489,2950.121699,9.9e-05,2]
[335048844,1723787572649,157.15990945,0.00012,2]
[335048846,1723788346141,-251.59481065,0.00014147,2]
[335048847,1723788346165,-81.50959236,0.00014245,2]
[335048848,1723788405976,175.38276741,0.00013971,2]
[335048849,1723788411114,-170.635233,0.00014247,2]
[335048850,1723788411140,-78.74866219,0.00014247,2]
[335048851,1723788445100,-79.67084581,0.00014247,2]
[335048852,1723788445121,-131.15579157,0.00015,2]
[335048853,1723788445947,-2571.05892206,0.00015,2]
[335048854,1723788452099,-314.01819117,0.00017266,2]
[335048855,1723788452123,-320.56496226,0.00017266,2]
[335048856,1723788452146,-300.0,0.00019999,2]
[335048857,1723788452169,-185.0,0.00019999,2]
[335048858,1723788452190,-1260.16836963,0.0002,2]
[335048859,1723788452211,-4709.3263241,0.0002,2]
[335048860,1723788452232,-420.0,0.00021999,2]
[335048861,1723788452255,-158.419508,0.00023688,2]
[335048862,1723788452277,-167.395,0.00024051,2]
[335048863,1723788452298,-271.0,0.00024199,2]
[335048864,1723788452320,-0.32944399,0.00024469,2]
[335048865,1723788484791,273.37336231,9.9e-05,2]
[335048866,1723788561088,-163.0885159,0.00017086,2]
[335048867,1723788573103,-789.88450829,0.00017086,2]
[335048892,1723788632178,-656.90878816,0.0002,2]
[335048968,1723788635809,134.82441797,0.00014247,2]
[335048980,1723788638387,-34.95696503,0.00014247,2]
[335048981,1723788638396,-603.25958147,0.0002,2]
[335048982,1723788638406,-952.97302419,0.0002071,2]
[335048983,1723788638417,-167.06555601,0.00024469,2]
[335048984,1723788638427,-167.395,0.00024887,2]
[335048985,1723788638438,-150.0,0.00025,2]
[335048986,1723788638447,-167.395,0.00025305,2]
[335048987,1723788638457,-1526.26439835,0.00025758,2]
[335049016,1723788642364,-3525.45631435,0.00025758,2]
[335049017,1723788642374,-66.40595074,0.0002605,2]
[335049018,1723788642388,-4604.01735356,0.0002605,2]
[335049019,1723788642401,-169.781383,0.00027884,2]
[335049020,1723788642411,-465.04834879,0.00028066,2]
[335049021,1723788642421,-1264.72913874,0.00029683,2]
[335049022,1723788642432,-379.88772339,0.000299,2]
[335049023,1723788642441,-4671.22449388,0.00029978,3]
[335049024,1723788642452,-500.0,0.00029979,2]
[335049025,1723788642461,-236.40141646,0.00029979,2]